Workbook

Sheet Executive Summary
A1: MICHIGAN STORAGE ADJUSTED NET OPERATING INCOME (NOI)
A4: Three-Year Broker Underwriting Summary | 2024, 2025 and 2026 YTD
A6: Business Component | B6: Metric ($) | C6: 2024 | D6: 2025 | E6: 2026 YTD | F6: 2026 Annualized* | G6: 2025–2024 Change | H6: Source / Status
A7: Storage Lot | B7: Gross Income | C7: 63067.09 | D7: 73316.31 | E7: 47726.69 | F7: =E7/201*365 -> 86667.8699 | G7: =D7/C7-1 -> 0.1625129683 | H7: Owner P&L
A8: Storage Lot | B8: Reported Net Income | C8: 7221.09 | D8: 2306.31 | E8: 10284.69 | F8: =E8/201*365 -> 18676.17836 | G8: =D8/C8-1 -> -0.6806146994 | H8: Owner P&L
A9: Storage Lot | B9: Adjusted NOI | C9: 61821.09 | D9: 71836.31 | E9: 46164.69 | F9: =E9/201*365 -> 83831.40224 | G9: =D9/C9-1 -> 0.1620032905 | H9: Normalized
A10: Properties | B10: Gross Income | C10: 90450 | D10: 103200 | E10: 58550 | F10: =E10/201*365 -> 106322.1393 | G10: =D10/C10-1 -> 0.1409618574 | H10: Owner P&L
A11: Properties | B11: Reported Net Income | C11: -9290.36 | D11: 2790.08 | E11: 34622.72 | F11: =E11/201*365 -> 62872.10348 | G11: =D11/C11-1 -> -1.300319901 | H11: Owner P&L
A12: Properties | B12: Adjusted NOI | C12: 51129.96 | D12: 67846.13 | E12: 42226.25 | F12: =E12/201*365 -> 76679.50871 | G12: =D12/C12-1 -> 0.3269349321 | H12: Normalized
A13: Combined | B13: Gross Income | C13: 153517.09 | D13: 176516.31 | E13: 106276.69 | F13: =E13/201*365 -> 192990.0092 | G13: =D13/C13-1 -> 0.1498153723 | H13: Calculated
A14: Combined | B14: Reported Net Income | C14: -2069.27 | D14: 5096.39 | E14: 44907.41 | F14: =E14/201*365 -> 81548.28184 | G14: =D14/C14-1 -> -3.462892711 | H14: Calculated
A15: Combined | B15: Adjusted NOI | C15: 112951.05 | D15: 139682.44 | E15: 88390.94 | F15: =E15/201*365 -> 160510.9109 | G15: =D15/C15-1 -> 0.2366634927 | H15: Calculated
A18: KEY UNDERWRITING METRICS
A19: Metric | B19: 2024 | C19: 2025 | D19: 2026 YTD
A20: Combined Adjusted NOI | B20: 112951.05 | C20: 139682.44 | D20: 88390.94
A21: NOI Margin | B21: =B20/C13 -> 0.7357555436 | C21: =C20/D13 -> 0.7913288013 | D21: =D20/E13 -> 0.8317058049
A22: Total Adjustments | B22: =B20-C14 -> 115020.32 | C22: =C20-D14 -> 134586.05 | D22: =D20-E14 -> 43483.53
A25: *2026 annualized figures extrapolate January 1–July 20, 2026 over 365 days. Annualization is mathematical only and not a forecast. Adjusted NOI reflects client-directed exclusions and should be reconciled with supporting records before reliance.

Sheet Storage Lot
A1: STORAGE LOT — ADJUSTED NOI SCHEDULE
A4: Line Item | B4: Classification | C4: 2024 | D4: 2025 | E4: 2026 YTD | F4: NOI Treatment | G4: Underwriting Rationale
A5: Storage Lot Rent | B5: Income | C5: 63067.09 | D5: 73316.31 | E5: 47726.69 | F5: Included | G5: Recurring operating income
A6: Storage Rental Refund | B6: Excluded Expense | C6: 440 | D6: 232 | E6: 0 | F6: Excluded | G6: Client-directed exclusion
A7: Bank Service Charges | B7: Excluded Expense | C7: 120 | D7: 120 | E7: 30 | F7: Excluded | G7: Client-directed exclusion
A8: Fee | B8: Operating Expense | C8: 50 | D8: 50 | E8: 0 | F8: Included | G8: Retained as operating expense
A9: Insurance | B9: Operating Expense | C9: 921 | D9: 1135 | E9: 1237 | F9: Included | G9: Property operating expense
A10: Legal Services | B10: Excluded Expense | C10: 0 | D10: 1278 | E10: 0 | F10: Excluded | G10: One-time/non-operating normalization
A11: Accounting | B11: Operating Expense | C11: 275 | D11: 295 | E11: 325 | F11: Included | G11: Retained as operating expense
A12: Rent / Owner Rent | B12: Excluded Expense | C12: 53000 | D12: 60000 | E12: 35000 | F12: Excluded | G12: Ownership/intercompany expense
A13: Repairs - Yard Maintenance | B13: Excluded Expense | C13: 340 | D13: 0 | E13: 0 | F13: Excluded | G13: Client-directed repairs exclusion
A14: Repairs & Maintenance | B14: Excluded Expense | C14: 500 | D14: 7600 | E14: 825 | F14: Excluded | G14: Client-directed repairs exclusion
A15: Security Deposit Card | B15: Excluded Expense | C15: 200 | D15: 300 | E15: 25 | F15: Excluded | G15: Deposit-related/non-operating item
A17: NOI RECONCILIATION
A18: Metric | B18: 2024 | C18: 2025 | D18: 2026 YTD
A19: Gross Income | B19: 63067.09 | C19: 73316.31 | D19: 47726.69
A20: Reported Net Income | B20: 7221.09 | C20: 2306.31 | D20: 10284.69
A21: Excluded Expense Add-Backs | B21: =SUM(C6:C7,C10,C12:C15) -> 54600 | C21: =SUM(D6:D7,D10,D12:D15) -> 69530 | D21: =SUM(E6:E7,E10,E12:E15) -> 35880
A22: Adjusted Operating Expenses | B22: =B19-B23 -> 1246 | C22: =C19-C23 -> 1480 | D22: =D19-D23 -> 1562
A23: Adjusted NOI | B23: =B20+B21 -> 61821.09 | C23: =C20+C21 -> 71836.31 | D23: =D20+D21 -> 46164.69
A24: NOI Margin | B24: =B23/B19 -> 0.9802432616 | C24: =C23/C19 -> 0.9798134958 | D24: =D23/D19 -> 0.9672719814

Sheet Properties
A1: RENTAL PROPERTIES — ADJUSTED NOI SCHEDULE
A4: Line Item | B4: Classification | C4: 2024 | D4: 2025 | E4: 2026 YTD | F4: NOI Treatment | G4: Underwriting Rationale
A5: Rental Income | B5: Income | C5: 37450 | D5: 43200 | E5: 23550 | F5: Included | G5: Recurring rental income
A6: Uncategorized Income | B6: Income | C6: 53000 | D6: 60000 | E6: 35000 | F6: Included / Verify | G6: Confirm source before reliance
A7: Automobile Expense | B7: Operating / Review | C7: 5228 | D7: 5460 | E7: 0 | F7: Included | G7: Not removed under current instructions
A8: Bank Business Payment | B8: Excluded Expense | C8: 36000 | D8: 44197.73 | E8: 0 | F8: Excluded | G8: Financing/non-operating expense
A9: Bank Service Charges | B9: Excluded Expense | C9: 120 | D9: 120 | E9: 30 | F9: Excluded | G9: Client-directed exclusion
A10: Computer & Internet | B10: Excluded Expense | C10: 1549.22 | D10: 2034.17 | E10: 454.82 | F10: Excluded | G10: Client-directed exclusion
A11: Gas | B11: Operating Expense | C11: 51.61 | D11: 115.08 | E11: 94.74 | F11: Included | G11: Property operating expense
A12: Insurance | B12: Operating Expense | C12: 6367.64 | D12: 3303 | E12: 3177 | F12: Included | G12: Property operating expense
A13: License / Fee | B13: Operating Expense | C13: 207 | D13: 857 | E13: 148 | F13: Included | G13: Property operating expense
A14: Meals & Entertainment | B14: Operating / Review | C14: 2028.48 | D14: 1051.72 | E14: 684.93 | F14: Included | G14: Not removed under current instructions
A15: Office Supplies | B15: Operating Expense | C15: 520.98 | D15: 255.99 | E15: 156 | F15: Included | G15: Administrative operating expense
A16: Professional Fees | B16: Operating / Review | C16: 375 | D16: 395 | E16: 425 | F16: Included | G16: Not removed under current instructions
A17: Repairs & Maintenance | B17: Excluded Expense | C17: 22751.1 | D17: 18704.15 | E17: 7118.71 | F17: Excluded | G17: Client-directed repairs exclusion
A18: Security Deposit Refund | B18: Operating / Review | C18: 300 | D18: 600 | E18: 0 | F18: Included | G18: Not removed under current instructions
A19: Property Taxes | B19: Operating Expense | C19: 10634.82 | D19: 11163.09 | E19: 4625.77 | F19: Included | G19: Property operating expense
A20: Telephone | B20: Operating / Review | C20: 875.55 | D20: 522.88 | E20: 260.4 | F20: Included | G20: Not removed under current instructions
A21: Trash Pick Up | B21: Operating Expense | C21: 1342.78 | D21: 1682.07 | E21: 879.37 | F21: Included | G21: Property operating expense
A22: Utilities | B22: Operating Expense | C22: 11167.18 | D22: 9948.04 | E22: 5872.54 | F22: Included | G22: Property operating expense
A24: NOI RECONCILIATION
A25: Metric | B25: 2024 | C25: 2025 | D25: 2026 YTD
A26: Gross Income | B26: 90450 | C26: 103200 | D26: 58550
A27: Reported Net Income | B27: -9290.36 | C27: 2790.08 | D27: 34622.72
A28: Excluded Expense Add-Backs | B28: =SUM(C8:C10,C17) -> 60420.32 | C28: =SUM(D8:D10,D17) -> 65056.05 | D28: =SUM(E8:E10,E17) -> 7603.53
A29: Adjusted Operating Expenses | B29: =B26-B30 -> 39320.04 | C29: =C26-C30 -> 35353.87 | D29: =D26-D30 -> 16323.75
A30: Adjusted NOI | B30: =B27+B28 -> 51129.96 | C30: =C27+C28 -> 67846.13 | D30: =D27+D28 -> 42226.25
A31: NOI Margin | B31: =B30/B26 -> 0.5652842454 | C31: =C30/C26 -> 0.6574237403 | D31: =D30/D26 -> 0.7211998292

Sheet Normalization Schedule
A1: NORMALIZATION AND ADJUSTMENT AUDIT TRAIL
A4: Component | B4: Expense | C4: 2024 | D4: 2025 | E4: 2026 YTD | F4: Classification | G4: Treatment | H4: Reason
A5: Storage Lot | B5: Storage Rental Refund | C5: 440 | D5: 232 | E5: 0 | F5: Non-operating | G5: Excluded | H5: Client-directed exclusion
A6: Storage Lot | B6: Bank Service Charges | C6: 120 | D6: 120 | E6: 30 | F6: Administrative | G6: Excluded | H6: Client-directed exclusion
A7: Storage Lot | B7: Legal Services | C7: 0 | D7: 1278 | E7: 0 | F7: One-time | G7: Excluded | H7: Normalization adjustment
A8: Storage Lot | B8: Owner Rent | C8: 53000 | D8: 60000 | E8: 35000 | F8: Owner/intercompany | G8: Excluded | H8: Not a recurring real estate operating expense
A9: Storage Lot | B9: Repairs - Yard Maintenance | C9: 340 | D9: 0 | E9: 0 | F9: Repairs | G9: Excluded | H9: Client-directed exclusion
A10: Storage Lot | B10: Repairs & Maintenance | C10: 500 | D10: 7600 | E10: 825 | F10: Repairs | G10: Excluded | H10: Client-directed exclusion
A11: Storage Lot | B11: Security Deposit Card | C11: 200 | D11: 300 | E11: 25 | F11: Deposit-related | G11: Excluded | H11: Non-operating/deposit item
A12: Properties | B12: Bank Business Payment | C12: 36000 | D12: 44197.73 | E12: 0 | F12: Financing | G12: Excluded | H12: Debt/business financing payment
A13: Properties | B13: Bank Service Charges | C13: 120 | D13: 120 | E13: 30 | F13: Administrative | G13: Excluded | H13: Client-directed exclusion
A14: Properties | B14: Computer & Internet | C14: 1549.22 | D14: 2034.17 | E14: 454.82 | F14: Administrative | G14: Excluded | H14: Client-directed exclusion
A15: Properties | B15: Repairs & Maintenance | C15: 22751.1 | D15: 18704.15 | E15: 7118.71 | F15: Repairs | G15: Excluded | H15: Client-directed exclusion
A17: Summary | B17: 2024 | C17: 2025 | D17: 2026 YTD | E17: 2026 Annualized
A18: Storage Lot Add-Backs | B18: 54600 | C18: 69530 | D18: 35880 | E18: =D18/201*365 -> 65155.22388
A19: Properties Add-Backs | B19: 60420.32 | C19: 65056.05 | D19: 7603.53 | E19: =D19/201*365 -> 13807.40522
A20: Combined Add-Backs | B20: 115020.32 | C20: 134586.05 | D20: 43483.53 | E20: =D20/201*365 -> 78962.6291
A21: Combined Adjusted NOI | B21: 112951.05 | C21: 139682.44 | D21: 88390.94 | E21: =D21/201*365 -> 160510.9109

Sheet Sources & Notes
A1: SOURCES, ASSUMPTIONS AND REVIEW NOTES
A4: Reference | B4: Document / Page | C4: Period | D4: Use | E4: Status | F4: Notes
A5: S-01 | B5: Xerox Scan_07212026122348.pdf — page 5 | C5: 2024 | D5: Storage Lot P&L | E5: Reviewed | F5: Image-based statement; values transcribed from the uploaded scan.
A6: S-02 | B6: Xerox Scan_07212026122348.pdf — page 6 | C6: 2024 | D6: Properties P&L | E6: Reviewed | F6: Image-based statement; values transcribed from the uploaded scan.
A7: S-03 | B7: Xerox Scan_07212026122348.pdf — pages 2 and 4 | C7: 2025 | D7: Storage Lot and Properties P&Ls | E7: Reviewed | F7: Owner-prepared cash-basis statements.
A8: S-04 | B8: Xerox Scan_07212026122348.pdf — pages 1 and 3 | C8: 2026 YTD | D8: Storage Lot and Properties P&Ls | E8: Reviewed | F8: Period shown as January 1 through July 20, 2026.
A9: A-01 | B9: Client instruction | C9: All periods | D9: Expense normalization | E9: Applied | F9: Storage Lot excludes bank charges, storage refunds and repairs; Properties excludes bank charges, computer/internet and repairs.
A10: A-02 | B10: Underwriting normalization | C10: All periods | D10: Other add-backs | E10: Applied | F10: Owner/intercompany rent, bank business payments, deposit-card items and identified one-time legal expense excluded from NOI.
A11: A-03 | B11: 2026 annualization assumption | C11: 2026 YTD | D11: Annualized presentation | E11: Applied | F11: 201 elapsed days through July 20; annualized as YTD ÷ 201 × 365.
A12: R-01 | B12: 2024 Properties P&L | C12: 2024 | D12: Uncategorized income | E12: Requires verification | F12: The statement reports $53,000 as Uncategorized Income. Confirm source before lender/investor reliance.
A14: IMPORTANT DISCLOSURE
A15: This workbook is a broker underwriting presentation, not an audit, tax return or assurance engagement.
A16: Adjusted NOI follows the client's requested exclusions and may differ from a lender's final underwriting treatment.
A17: Prospective users should verify all income, expenses, occupancy, leases and supporting documentation independently.
